[Event "Titled Tuesday Blitz April 18 Early 2023"]
[White "Kyaw Lay Htaik"]
[Black "Jaskolka, Tomasz"]
[WhiteFideId "13002007"]
[BlackFideId "1170791"]
[WhiteElo "2261"]
[BlackElo "2155"]
[Result "0-1"]
[Round "11"]
[TimeControl "180+2"]
[Date "2023.04.18"]
[WhiteClock "0:00:01"]
[BlackClock "0:00:03"]

1. d4 {[%clk 0:02:59]}  d5 {[%clk 0:03:00]} 2. Nf3 {[%clk 0:02:59]}  Nc6 {[%clk 0:02:59]} 3. Bf4 {[%clk 0:03:00]}  f6 {[%clk 0:02:56]} 4. c4 {[%clk 0:02:59]}  e6 {[%clk 0:02:54]} 5. Nc3 {[%clk 0:02:57]}  Bb4 {[%clk 0:02:53]} 6. Qb3 {[%clk 0:02:57]}  Bxc3+ {[%clk 0:02:52]} 7. Qxc3 {[%clk 0:02:55]}  Nge7 {[%clk 0:02:52]} 8. e3 {[%clk 0:02:53]}  O-O {[%clk 0:02:52]} 9. Bd3 {[%clk 0:02:52]}  dxc4 {[%clk 0:02:42]} 10. Bxc4 {[%clk 0:02:50]}  Nd5 {[%clk 0:02:41]} 11. Bxd5 {[%clk 0:02:45]}  exd5 {[%clk 0:02:40]} 12. O-O {[%clk 0:02:45]}  Bg4 {[%clk 0:02:31]} 13. Nd2 {[%clk 0:02:41]}  Rc8 {[%clk 0:02:17]} 14. Rac1 {[%clk 0:02:38]}  Ne7 {[%clk 0:02:07]} 15. Qa3 {[%clk 0:02:10]}  Qd7 {[%clk 0:01:22]} 16. Qxa7 {[%clk 0:02:01]}  Ra8 {[%clk 0:01:20]} 17. Qxb7 {[%clk 0:01:58]}  Rfb8 {[%clk 0:01:08]} 18. Qxc7 {[%clk 0:01:56]}  Rxb2 {[%clk 0:01:07]} 19. Qxd7 {[%clk 0:01:52]}  Bxd7 {[%clk 0:01:07]} 20. Rc7 {[%clk 0:01:42]}  Rxd2 {[%clk 0:01:05]} 21. Rxd7 {[%clk 0:01:42]}  Ng6 {[%clk 0:00:53]} 22. Bg3 {[%clk 0:01:33]}  Ra5 {[%clk 0:00:51]} 23. h4 {[%clk 0:01:31]}  Rdxa2 {[%clk 0:00:49]} 24. Rc1 {[%clk 0:01:29]}  Ra1 {[%clk 0:00:47]} 25. Rxa1 {[%clk 0:01:29]}  Rxa1+ {[%clk 0:00:48]} 26. Kh2 {[%clk 0:01:29]}  Ra5 {[%clk 0:00:48]} 27. h5 {[%clk 0:01:27]}  Nf8 {[%clk 0:00:48]} 28. Rd8 {[%clk 0:01:26]}  Kf7 {[%clk 0:00:48]} 29. Bd6 {[%clk 0:01:23]}  Ne6 {[%clk 0:00:35]} 30. Rd7+ {[%clk 0:01:22]}  Kg8 {[%clk 0:00:36]} 31. Re7 {[%clk 0:01:13]}  Ng5 {[%clk 0:00:31]} 32. f4 {[%clk 0:01:07]}  Ne4 {[%clk 0:00:29]} 33. Bb4 {[%clk 0:00:58]}  Ra8 {[%clk 0:00:26]} 34. Rd7 {[%clk 0:00:54]}  Rb8 {[%clk 0:00:24]} 35. Bc5 {[%clk 0:00:51]}  f5 {[%clk 0:00:15]} 36. Rxd5 {[%clk 0:00:50]}  Nf6 {[%clk 0:00:14]} 37. Rxf5 {[%clk 0:00:49]}  Ng4+ {[%clk 0:00:14]} 38. Kg3 {[%clk 0:00:44]}  Nxe3 {[%clk 0:00:15]} 39. Re5 {[%clk 0:00:43]}  Rb3 {[%clk 0:00:12]} 40. Re8+ {[%clk 0:00:24]}  Kf7 {[%clk 0:00:12]} 41. Rf8+ {[%clk 0:00:21]}  Ke6 {[%clk 0:00:13]} 42. Kf2 {[%clk 0:00:17]}  Ng4+ {[%clk 0:00:13]} 43. Ke2 {[%clk 0:00:16]}  Kd5 {[%clk 0:00:13]} 44. Rf7 {[%clk 0:00:14]}  Ke4 {[%clk 0:00:11]} 45. Rxg7 {[%clk 0:00:13]}  Rb2+ {[%clk 0:00:11]} 46. Kd1 {[%clk 0:00:13]}  Ne3+ {[%clk 0:00:12]} 47. Kc1 {[%clk 0:00:12]}  Rc2+ {[%clk 0:00:12]} 48. Kb1 {[%clk 0:00:11]}  Rd2 {[%clk 0:00:11]} 49. Rxh7 {[%clk 0:00:10]}  Kd3 {[%clk 0:00:11]} 50. Rb7 {[%clk 0:00:07]}  Rxg2 {[%clk 0:00:05]} 51. h6 {[%clk 0:00:07]}  Rh2 {[%clk 0:00:03]} 52. h7 {[%clk 0:00:07]}  Nd5 {[%clk 0:00:02]} 53. f5 {[%clk 0:00:05]}  Nc3+ {[%clk 0:00:03]} 54. Kc1 {[%clk 0:00:01]}  Rc2# {[%clk 0:00:03]} 0-1


[Site "https://www.chess.com"]

[Event "Titled Tuesday Blitz April 18 Early 2023"]
[White "Toncheva, Nadya"]
[Black "Gheorghiu, Calin"]
[WhiteFideId "2924056"]
[BlackFideId "1200305"]
[WhiteElo "2101"]
[BlackElo "2223"]
[Result "1-0"]
[Round "11"]
[TimeControl "180+2"]
[Date "2023.04.18"]
[WhiteClock "0:00:27"]
[BlackClock "0:00:03"]

1. e4 {[%clk 0:03:00]}  e6 {[%clk 0:02:58]} 2. d4 {[%clk 0:03:00]}  d5 {[%clk 0:02:58]} 3. Nd2 {[%clk 0:03:01]}  c5 {[%clk 0:02:58]} 4. exd5 {[%clk 0:03:00]}  Qxd5 {[%clk 0:02:58]} 5. Ngf3 {[%clk 0:03:00]}  cxd4 {[%clk 0:02:57]} 6. Bc4 {[%clk 0:03:00]}  Qd6 {[%clk 0:02:58]} 7. O-O {[%clk 0:03:01]}  Nf6 {[%clk 0:02:58]} 8. Nb3 {[%clk 0:03:02]}  Nc6 {[%clk 0:02:58]} 9. Nbxd4 {[%clk 0:03:02]}  Nxd4 {[%clk 0:02:58]} 10. Qxd4 {[%clk 0:03:02]}  Bd7 {[%clk 0:02:47]} 11. Bf4 {[%clk 0:02:57]}  Qxd4 {[%clk 0:02:43]} 12. Nxd4 {[%clk 0:02:58]}  a6 {[%clk 0:02:38]} 13. a4 {[%clk 0:02:53]}  Bc5 {[%clk 0:02:32]} 14. Nb3 {[%clk 0:02:51]}  Be7 {[%clk 0:02:23]} 15. Be2 {[%clk 0:02:51]}  Nd5 {[%clk 0:01:52]} 16. Be5 {[%clk 0:02:45]}  f6 {[%clk 0:01:52]} 17. Bg3 {[%clk 0:02:46]}  h5 {[%clk 0:01:39]} 18. h3 {[%clk 0:02:40]}  h4 {[%clk 0:01:38]} 19. Bh2 {[%clk 0:02:40]}  O-O {[%clk 0:01:30]} 20. Bf3 {[%clk 0:02:36]}  Rac8 {[%clk 0:01:29]} 21. Rfc1 {[%clk 0:02:27]}  b6 {[%clk 0:01:09]} 22. c4 {[%clk 0:02:23]}  Nb4 {[%clk 0:01:06]} 23. Bb7 {[%clk 0:02:15]}  Rce8 {[%clk 0:00:59]} 24. a5 {[%clk 0:02:08]}  b5 {[%clk 0:00:48]} 25. cxb5 {[%clk 0:01:51]}  Bxb5 {[%clk 0:00:49]} 26. Nd4 {[%clk 0:01:51]}  Bd7 {[%clk 0:00:38]} 27. Rc7 {[%clk 0:01:48]}  Rd8 {[%clk 0:00:37]} 28. Nxe6 {[%clk 0:01:36]}  Bxe6 {[%clk 0:00:30]} 29. Rxe7 {[%clk 0:01:35]}  Bd5 {[%clk 0:00:24]} 30. Bxd5+ {[%clk 0:01:32]}  Rxd5 {[%clk 0:00:23]} 31. Bf4 {[%clk 0:01:27]}  Nd3 {[%clk 0:00:17]} 32. Be3 {[%clk 0:01:13]}  Nxb2 {[%clk 0:00:17]} 33. Ra7 {[%clk 0:01:10]}  Rc8 {[%clk 0:00:05]} 34. Rxa6 {[%clk 0:01:08]}  Nd1 {[%clk 0:00:05]} 35. Re6 {[%clk 0:01:04]}  Ra8 {[%clk 0:00:02]} 36. a6 {[%clk 0:01:03]}  Nxe3 {[%clk 0:00:03]} 37. fxe3 {[%clk 0:00:59]}  Rd7 {[%clk 0:00:02]} 38. Ra4 {[%clk 0:00:56]}  Rda7 {[%clk 0:00:01]} 39. Kf2 {[%clk 0:00:55]}  Kf7 {[%clk 0:00:01]} 40. Rb6 {[%clk 0:00:54]}  Ke7 {[%clk 0:00:01]} 41. Kf3 {[%clk 0:00:50]}  Kf7 {[%clk 0:00:02]} 42. Kg4 {[%clk 0:00:47]}  g5 {[%clk 0:00:01]} 43. Kf5 {[%clk 0:00:46]}  Ke7 {[%clk 0:00:02]} 44. Re6+ {[%clk 0:00:46]}  Kd7 {[%clk 0:00:02]} 45. Rxf6 {[%clk 0:00:45]}  Kc7 {[%clk 0:00:02]} 46. Rc4+ {[%clk 0:00:42]}  Kd7 {[%clk 0:00:02]} 47. Rd4+ {[%clk 0:00:39]}  Kc7 {[%clk 0:00:02]} 48. Kxg5 {[%clk 0:00:36]}  Rg8+ {[%clk 0:00:02]} 49. Kxh4 {[%clk 0:00:35]}  Rxg2 {[%clk 0:00:01]} 50. Rf7+ {[%clk 0:00:34]}  Kb6 {[%clk 0:00:02]} 51. Rb4+ {[%clk 0:00:28]}  Ka5 {[%clk 0:00:01]} 52. Rxa7 {[%clk 0:00:27]}  Kxb4 {[%clk 0:00:02]} 53. Rb7+ {[%clk 0:00:28]}  Kc5 {[%clk 0:00:02]} 54. a7 {[%clk 0:00:28]}  Ra2 {[%clk 0:00:03]} 55. Kg4 {[%clk 0:00:27]} 1-0


[Site "https://www.chess.com"]

[Event "Titled Tuesday Blitz April 18 Early 2023"]
[White "Fernandez Siles, Luis"]
[Black "Skliarov, Viktor"]
[WhiteFideId "2209420"]
[BlackFideId "14106736"]
[WhiteElo "2195"]
[BlackElo "2317"]
[Result "1-0"]
[Round "11"]
[TimeControl "180+2"]
[Date "2023.04.18"]
[WhiteClock "0:00:40"]
[BlackClock "0:00:04"]

1. e4 {[%clk 0:03:00]}  c5 {[%clk 0:02:55]} 2. Nf3 {[%clk 0:03:00]}  Nc6 {[%clk 0:02:55]} 3. d4 {[%clk 0:02:57]}  cxd4 {[%clk 0:02:56]} 4. Nxd4 {[%clk 0:02:57]}  Nf6 {[%clk 0:02:57]} 5. Nc3 {[%clk 0:02:58]}  e5 {[%clk 0:02:54]} 6. Ndb5 {[%clk 0:02:58]}  d6 {[%clk 0:02:55]} 7. Nd5 {[%clk 0:02:58]}  Nxd5 {[%clk 0:02:54]} 8. exd5 {[%clk 0:02:59]}  Nb8 {[%clk 0:02:55]} 9. c4 {[%clk 0:02:59]}  Be7 {[%clk 0:02:56]} 10. Bd3 {[%clk 0:02:58]}  a6 {[%clk 0:02:56]} 11. Nc3 {[%clk 0:02:57]}  O-O {[%clk 0:02:57]} 12. O-O {[%clk 0:02:57]}  f5 {[%clk 0:02:58]} 13. f3 {[%clk 0:02:56]}  Nd7 {[%clk 0:02:58]} 14. Kh1 {[%clk 0:02:55]}  b6 {[%clk 0:02:56]} 15. Be3 {[%clk 0:02:54]}  Ra7 {[%clk 0:02:55]} 16. b4 {[%clk 0:02:44]}  Rc7 {[%clk 0:02:54]} 17. Qb3 {[%clk 0:02:43]}  Bg5 {[%clk 0:02:44]} 18. Bg1 {[%clk 0:02:42]}  Qf6 {[%clk 0:02:05]} 19. Na4 {[%clk 0:02:36]}  Rb7 {[%clk 0:02:00]} 20. Qc2 {[%clk 0:02:25]}  e4 {[%clk 0:01:02]} 21. fxe4 {[%clk 0:02:23]}  f4 {[%clk 0:01:02]} 22. e5 {[%clk 0:02:11]}  Nxe5 {[%clk 0:00:58]} 23. Bxh7+ {[%clk 0:02:10]}  Kh8 {[%clk 0:00:58]} 24. Be4 {[%clk 0:02:11]}  b5 {[%clk 0:00:53]} 25. cxb5 {[%clk 0:01:59]}  axb5 {[%clk 0:00:54]} 26. Nc3 {[%clk 0:02:00]}  Bg4 {[%clk 0:00:54]} 27. Bd4 {[%clk 0:01:58]}  Qh6 {[%clk 0:00:42]} 28. Bxe5 {[%clk 0:01:55]}  dxe5 {[%clk 0:00:41]} 29. Bf3 {[%clk 0:01:49]}  Bf5 {[%clk 0:00:34]} 30. Qe2 {[%clk 0:01:32]}  Bf6 {[%clk 0:00:26]} 31. Ne4 {[%clk 0:01:24]}  Rd8 {[%clk 0:00:18]} 32. Rfd1 {[%clk 0:01:19]}  Rbd7 {[%clk 0:00:18]} 33. Rac1 {[%clk 0:01:16]}  Bh4 {[%clk 0:00:12]} 34. Bg4 {[%clk 0:01:04]}  Bg3 {[%clk 0:00:09]} 35. h3 {[%clk 0:01:04]}  Bxg4 {[%clk 0:00:07]} 36. Qxg4 {[%clk 0:01:04]}  Re7 {[%clk 0:00:04]} 37. Nxg3 {[%clk 0:01:02]}  fxg3 {[%clk 0:00:05]} 38. Qxg3 {[%clk 0:01:02]}  e4 {[%clk 0:00:05]} 39. Rc7 {[%clk 0:00:58]}  Rxc7 {[%clk 0:00:04]} 40. Qxc7 {[%clk 0:00:57]}  Rd6 {[%clk 0:00:05]} 41. Qc8+ {[%clk 0:00:55]}  Kh7 {[%clk 0:00:05]} 42. Qf5+ {[%clk 0:00:55]}  Qg6 {[%clk 0:00:04]} 43. Qxg6+ {[%clk 0:00:54]}  Kxg6 {[%clk 0:00:05]} 44. g4 {[%clk 0:00:50]}  Kg5 {[%clk 0:00:04]} 45. Kg2 {[%clk 0:00:48]}  Kf4 {[%clk 0:00:05]} 46. Kf2 {[%clk 0:00:48]}  Ke5 {[%clk 0:00:03]} 47. Ke3 {[%clk 0:00:48]}  Rh6 {[%clk 0:00:03]} 48. d6 {[%clk 0:00:43]}  Rxh3+ {[%clk 0:00:03]} 49. Kf2 {[%clk 0:00:42]}  Rh8 {[%clk 0:00:03]} 50. d7 {[%clk 0:00:42]}  Rd8 {[%clk 0:00:03]} 51. Ke3 {[%clk 0:00:43]}  g5 {[%clk 0:00:02]} 52. Rd2 {[%clk 0:00:41]}  Ke6 {[%clk 0:00:02]} 53. Kxe4 {[%clk 0:00:41]}  Rxd7 {[%clk 0:00:03]} 54. Rxd7 {[%clk 0:00:41]}  Kxd7 {[%clk 0:00:04]} 55. Kf5 {[%clk 0:00:40]} 1-0


[Site "https://www.chess.com"]

[Event "Titled Tuesday Blitz April 18 Early 2023"]
[White "littlepillow2010"]
[Black "Dushyant Sharma"]
[BlackFideId "25065130"]
[WhiteElo "2409"]
[BlackElo "2198"]
[Result "0-1"]
[Round "11"]
[TimeControl "180+2"]
[Date "2023.04.18"]
[WhiteClock "0:00:03"]
[BlackClock "0:00:46"]

1. e4 {[%clk 0:03:00]}  d5 {[%clk 0:02:58]} 2. exd5 {[%clk 0:03:00]}  Nf6 {[%clk 0:02:59]} 3. d4 {[%clk 0:03:00]}  Bg4 {[%clk 0:02:59]} 4. Nf3 {[%clk 0:02:55]}  Qxd5 {[%clk 0:02:59]} 5. Be2 {[%clk 0:02:56]}  Nc6 {[%clk 0:02:59]} 6. c3 {[%clk 0:02:55]}  O-O-O {[%clk 0:03:00]} 7. h3 {[%clk 0:02:53]}  Bh5 {[%clk 0:02:59]} 8. O-O {[%clk 0:02:52]}  e6 {[%clk 0:02:57]} 9. Ng5 {[%clk 0:02:42]}  Bxe2 {[%clk 0:02:43]} 10. Qxe2 {[%clk 0:02:43]}  e5 {[%clk 0:02:33]} 11. dxe5 {[%clk 0:02:39]}  Nxe5 {[%clk 0:02:34]} 12. Be3 {[%clk 0:02:28]}  h6 {[%clk 0:02:26]} 13. Nf3 {[%clk 0:02:27]}  Nxf3+ {[%clk 0:02:26]} 14. Qxf3 {[%clk 0:02:27]}  Qxf3 {[%clk 0:02:27]} 15. gxf3 {[%clk 0:02:27]}  Nd5 {[%clk 0:02:20]} 16. Rd1 {[%clk 0:02:00]}  Be7 {[%clk 0:02:05]} 17. Nd2 {[%clk 0:01:55]}  Rhe8 {[%clk 0:01:54]} 18. Nb3 {[%clk 0:01:41]}  Bg5 {[%clk 0:01:38]} 19. Bxg5 {[%clk 0:01:26]}  hxg5 {[%clk 0:01:38]} 20. Re1 {[%clk 0:01:18]}  Nf4 {[%clk 0:01:25]} 21. Rxe8 {[%clk 0:00:15]}  Rxe8 {[%clk 0:01:26]} 22. h4 {[%clk 0:00:13]}  gxh4 {[%clk 0:01:24]} 23. Rd1 {[%clk 0:00:14]}  g5 {[%clk 0:01:22]} 24. Rd2 {[%clk 0:00:11]}  f5 {[%clk 0:00:51]} 25. Nd4 {[%clk 0:00:10]}  Re5 {[%clk 0:00:51]} 26. Nc2 {[%clk 0:00:03]}  g4 {[%clk 0:00:49]} 27. fxg4 {[%clk 0:00:03]}  fxg4 {[%clk 0:00:50]} 28. Ne3 {[%clk 0:00:04]}  g3 {[%clk 0:00:47]} 29. Rd4 {[%clk 0:00:03]}  Ne2+ {[%clk 0:00:46]} 0-1


[Site "https://www.chess.com"]

[Event "Titled Tuesday Blitz April 18 Early 2023"]
[White "koncheto"]
[Black "Marcziter, Dmitrii"]
[BlackFideId "13900765"]
[WhiteElo "2536"]
[BlackElo "2162"]
[Result "1-0"]
[Round "11"]
[TimeControl "180+2"]
[Date "2023.04.18"]
[WhiteClock "0:01:49"]
[BlackClock "0:00:51"]

1. e4 {[%clk 0:02:55]}  c5 {[%clk 0:02:58]} 2. Nf3 {[%clk 0:02:55]}  a6 {[%clk 0:02:59]} 3. c4 {[%clk 0:02:53]}  e6 {[%clk 0:02:52]} 4. d4 {[%clk 0:02:51]}  cxd4 {[%clk 0:02:52]} 5. Nxd4 {[%clk 0:02:52]}  Nf6 {[%clk 0:02:51]} 6. Nc3 {[%clk 0:02:52]}  Qc7 {[%clk 0:02:51]} 7. Be2 {[%clk 0:02:52]}  Bb4 {[%clk 0:02:49]} 8. Qd3 {[%clk 0:02:52]}  d6 {[%clk 0:02:49]} 9. O-O {[%clk 0:02:51]}  Nbd7 {[%clk 0:02:48]} 10. Nc2 {[%clk 0:02:51]}  Bxc3 {[%clk 0:02:38]} 11. Qxc3 {[%clk 0:02:52]}  O-O {[%clk 0:02:35]} 12. f3 {[%clk 0:02:51]}  d5 {[%clk 0:02:32]} 13. exd5 {[%clk 0:02:46]}  exd5 {[%clk 0:02:32]} 14. Bg5 {[%clk 0:02:43]}  h6 {[%clk 0:02:30]} 15. Bh4 {[%clk 0:02:43]}  dxc4 {[%clk 0:02:23]} 16. Bxc4 {[%clk 0:02:43]}  Qc6 {[%clk 0:02:10]} 17. Rad1 {[%clk 0:02:33]}  Nb6 {[%clk 0:02:05]} 18. Bxf6 {[%clk 0:02:29]}  Qxf6 {[%clk 0:01:57]} 19. Qxf6 {[%clk 0:02:24]}  gxf6 {[%clk 0:01:57]} 20. Bb3 {[%clk 0:02:25]}  Bf5 {[%clk 0:01:48]} 21. Rd6 {[%clk 0:02:24]}  Rac8 {[%clk 0:01:31]} 22. Ne3 {[%clk 0:02:16]}  Be6 {[%clk 0:01:15]} 23. Rxb6 {[%clk 0:02:13]}  Bxb3 {[%clk 0:01:13]} 24. Rxb3 {[%clk 0:02:12]}  b5 {[%clk 0:01:12]} 25. Nd5 {[%clk 0:02:05]}  Kg7 {[%clk 0:01:10]} 26. Rc3 {[%clk 0:02:05]}  Rcd8 {[%clk 0:01:06]} 27. Rd1 {[%clk 0:02:05]}  Rfe8 {[%clk 0:01:04]} 28. Kf2 {[%clk 0:01:59]}  Rd6 {[%clk 0:00:59]} 29. Nc7 {[%clk 0:01:49]}  Red8 {[%clk 0:00:51]} 30. Rxd6 {[%clk 0:01:49]}  Rxd6 {[%clk 0:00:51]} 31. Ne8+ {[%clk 0:01:49]} 1-0


[Site "https://www.chess.com"]

[Event "Titled Tuesday Blitz April 18 Early 2023"]
[White "Milchev, Nikolay"]
[Black "Smiechu"]
[WhiteFideId "2906090"]
[WhiteElo "2449"]
[BlackElo "2373"]
[Result "1-0"]
[Round "11"]
[TimeControl "180+2"]
[Date "2023.04.18"]
[WhiteClock "0:00:25"]
[BlackClock "0:00:06"]

1. Nf3 {[%clk 0:03:00]}  Nf6 {[%clk 0:02:59]} 2. c4 {[%clk 0:03:01]}  c5 {[%clk 0:02:59]} 3. Nc3 {[%clk 0:03:01]}  Nc6 {[%clk 0:02:59]} 4. g3 {[%clk 0:03:02]}  g6 {[%clk 0:02:59]} 5. Bg2 {[%clk 0:03:02]}  Bg7 {[%clk 0:03:00]} 6. O-O {[%clk 0:03:03]}  O-O {[%clk 0:03:00]} 7. Ne1 {[%clk 0:03:04]}  d6 {[%clk 0:03:00]} 8. Nc2 {[%clk 0:03:04]}  Be6 {[%clk 0:02:58]} 9. Nd5 {[%clk 0:03:02]}  Qd7 {[%clk 0:02:56]} 10. Re1 {[%clk 0:03:01]}  Bh3 {[%clk 0:02:55]} 11. Bh1 {[%clk 0:03:02]}  Nxd5 {[%clk 0:02:52]} 12. cxd5 {[%clk 0:03:01]}  Nd4 {[%clk 0:02:51]} 13. Nxd4 {[%clk 0:03:01]}  Bxd4 {[%clk 0:02:51]} 14. e3 {[%clk 0:03:01]}  Bg7 {[%clk 0:02:50]} 15. d3 {[%clk 0:02:59]}  b5 {[%clk 0:02:48]} 16. Rb1 {[%clk 0:02:59]}  Rfc8 {[%clk 0:02:46]} 17. b3 {[%clk 0:02:59]}  c4 {[%clk 0:02:43]} 18. dxc4 {[%clk 0:02:57]}  bxc4 {[%clk 0:02:43]} 19. bxc4 {[%clk 0:02:53]}  Rxc4 {[%clk 0:02:43]} 20. Bb2 {[%clk 0:02:52]}  Rac8 {[%clk 0:02:39]} 21. Bxg7 {[%clk 0:02:51]}  Kxg7 {[%clk 0:02:39]} 22. Rb2 {[%clk 0:02:48]}  Qc7 {[%clk 0:02:17]} 23. Bg2 {[%clk 0:02:41]}  Bxg2 {[%clk 0:02:14]} 24. Kxg2 {[%clk 0:02:42]}  Rc2 {[%clk 0:02:15]} 25. Qd4+ {[%clk 0:02:41]}  Kg8 {[%clk 0:02:14]} 26. Reb1 {[%clk 0:02:39]}  Rxb2 {[%clk 0:02:08]} 27. Rxb2 {[%clk 0:02:39]}  Qc5 {[%clk 0:02:05]} 28. Qe4 {[%clk 0:02:31]}  Qc7 {[%clk 0:02:00]} 29. h4 {[%clk 0:02:29]}  h5 {[%clk 0:01:59]} 30. Rb4 {[%clk 0:02:17]}  a5 {[%clk 0:01:52]} 31. Rb5 {[%clk 0:02:13]}  Ra8 {[%clk 0:01:43]} 32. a4 {[%clk 0:02:10]}  Kf8 {[%clk 0:01:36]} 33. Qd4 {[%clk 0:02:07]}  Kg8 {[%clk 0:01:35]} 34. e4 {[%clk 0:01:56]}  Rc8 {[%clk 0:01:30]} 35. Qe3 {[%clk 0:01:49]}  Kg7 {[%clk 0:01:20]} 36. Qe1 {[%clk 0:01:45]}  Ra8 {[%clk 0:01:13]} 37. Qa1+ {[%clk 0:01:40]}  Kg8 {[%clk 0:01:12]} 38. Qd4 {[%clk 0:01:39]}  Rc8 {[%clk 0:01:11]} 39. Qe3 {[%clk 0:01:36]}  Kg7 {[%clk 0:01:07]} 40. Qg5 {[%clk 0:01:26]}  Kf8 {[%clk 0:00:40]} 41. Qd2 {[%clk 0:01:18]}  Ra8 {[%clk 0:00:37]} 42. Qb2 {[%clk 0:01:17]}  Kg8 {[%clk 0:00:33]} 43. Rb7 {[%clk 0:01:17]}  Qd8 {[%clk 0:00:33]} 44. Qb5 {[%clk 0:01:15]}  Kg7 {[%clk 0:00:25]} 45. Rd7 {[%clk 0:00:58]}  Qe8 {[%clk 0:00:24]} 46. Qb2+ {[%clk 0:00:56]}  Kg8 {[%clk 0:00:23]} 47. Qb7 {[%clk 0:00:54]}  Rb8 {[%clk 0:00:20]} 48. Rxe7 {[%clk 0:00:49]}  Rxb7 {[%clk 0:00:20]} 49. Rxe8+ {[%clk 0:00:49]}  Kg7 {[%clk 0:00:21]} 50. Ra8 {[%clk 0:00:45]}  Rb4 {[%clk 0:00:21]} 51. Rxa5 {[%clk 0:00:45]}  Rxe4 {[%clk 0:00:21]} 52. Ra6 {[%clk 0:00:45]}  Rd4 {[%clk 0:00:21]} 53. Rxd6 {[%clk 0:00:45]}  Rxa4 {[%clk 0:00:20]} 54. Kf3 {[%clk 0:00:40]}  Kf8 {[%clk 0:00:20]} 55. Ke3 {[%clk 0:00:39]}  Ke7 {[%clk 0:00:20]} 56. Rc6 {[%clk 0:00:39]}  Kd7 {[%clk 0:00:20]} 57. Rb6 {[%clk 0:00:39]}  Ke7 {[%clk 0:00:20]} 58. Rb7+ {[%clk 0:00:37]}  Kf6 {[%clk 0:00:19]} 59. d6 {[%clk 0:00:37]}  Ke6 {[%clk 0:00:20]} 60. Re7+ {[%clk 0:00:36]}  Kxd6 {[%clk 0:00:20]} 61. Rxf7 {[%clk 0:00:36]}  Ke5 {[%clk 0:00:21]} 62. Kf3 {[%clk 0:00:29]}  Ra3+ {[%clk 0:00:20]} 63. Kg2 {[%clk 0:00:30]}  Ke6 {[%clk 0:00:20]} 64. Rf4 {[%clk 0:00:29]}  Ke5 {[%clk 0:00:20]} 65. Kf1 {[%clk 0:00:28]}  Ra2 {[%clk 0:00:19]} 66. Kg2 {[%clk 0:00:28]}  Ra3 {[%clk 0:00:19]} 67. Rf8 {[%clk 0:00:28]}  Ke6 {[%clk 0:00:19]} 68. f3 {[%clk 0:00:27]}  Ra2+ {[%clk 0:00:18]} 69. Kh3 {[%clk 0:00:28]}  Ra1 {[%clk 0:00:18]} 70. g4 {[%clk 0:00:28]}  Rh1+ {[%clk 0:00:17]} 71. Kg3 {[%clk 0:00:28]}  Rg1+ {[%clk 0:00:14]} 72. Kh2 {[%clk 0:00:26]}  Rf1 {[%clk 0:00:15]} 73. g5 {[%clk 0:00:25]}  Ke7 {[%clk 0:00:06]} 74. Rf6 {[%clk 0:00:25]}  Rf2+ {[%clk 0:00:06]} 75. Kg3 {[%clk 0:00:25]} 1-0


[Site "https://www.chess.com"]